[Event "3rd BSSZ-Aranytiz IM 2019"]
[Site "Budapest"]
[Date "2019.08.23"]
[Round "7.5"]
[White "Maerevoet, Sim"]
[Black "Luong, Phuong Hanh"]
[Result "1-0"]
[ECO "D85"]
[WhiteElo "2321"]
[BlackElo "2313"]
[Annotator "NA"]
[PlyCount "87"]
[EventDate "2019.08.16"]
[EventType "tourn"]
[EventCountry "HUN"]
[SourceTitle "playchess.com"]
[Source "ChessBase"]
[SourceQuality "1"]
[TimeControl "40/5400+30:1800+30"]

1. d4 {[%emt 0:00:03]} Nf6 {[%emt 0:01:51]} 2. c4 {[%emt 0:00:06]} g6 {[%emt 0:00:18]} 3. Nc3 {[%emt 0:00:05]} d5 {[%emt 0:00:06]} 4. cxd5 {[%emt 0:00:04]} Nxd5 {[%emt 0:00:11]} 5. e4 {[%emt 0:00:06]} Nxc3 {[%emt 0:00:08]} 6. bxc3 {[%emt 0:00:04]} Bg7 {[%emt 0:00:07]} 7. Qa4+ {[%emt 0:00:07]} c6 {[%emt 0:02:07]} 8. Nf3 {[%emt 0:01:02]} O-O {[%emt 0:00:22]} 9. Be2 {[%emt 0:00:08]} b5 {[%emt 0:03:36]} 10. Qa3 {[%emt 0:05:29]} Ba6 {[%emt 0:03:21]} 11. Bg5 {[%emt 0:06:46]} b4 {[%emt 0:10:36]} 12. Qxb4 {[%emt 0:04:00]} Bxe2 {[%emt 0:00:15]} 13. Kxe2 {[%emt 0:00:05]} Qc8 {[%emt 0:04:11]} 14. Qc4 {[%emt 0:11:38]} Qg4 {[%emt 0:04:43]} 15. Qd3 {[%emt 0:00:30]} e5 {[%emt 0:05:04]} 16. h3 {[%emt 0:03:19]} Qe6 {[%emt 0:00:10]} 17. Rhe1 {[%emt 0:03:25]} Nd7 {[%emt 0:02:31]} 18. Kf1 {[%emt 0:00:58]} exd4 {[%emt 0:01:14]} 19. cxd4 {[%emt 0:00:22]} c5 {[%emt 0:01:06]} 20. d5 {[%emt 0:01:37]} Qd6 {[%emt 0:01:11]} 21. Rab1 {[%emt 0:00:59]} Rac8 {[%emt 0:03:37]} 22. Qa3 {[%emt 0:06:27]} f5 {[%emt 0:03:24]} 23. exf5 {[%emt 0:08:02]} Rxf5 {[%emt 0:01:00]} 24. Re6 {[%emt 0:08:14]} Qxd5 {[%emt 0:00:59]} 25. Qa6 {[%emt 0:00:15]} Rxf3 {[%emt 0:06:47]} 26. gxf3 {[%emt 0:00:42]} Rf8 {[%emt 0:00:26]} 27. Re3 {[%emt 0:15:41]} Qxg5 {[%emt 0:04:26]} 28. Qe6+ {[%emt 0:00:04]} Rf7 {[%emt 0:01:50]} 29. Rb7 {[%emt 0:00:06]} Qf5 {[%emt 0:01:32]} 30. Rxd7 {[%emt 0:00:16]} Qxe6 {[%emt 0:01:51]} 31. Rd8+ {[%emt 0:00:05]} Bf8 {[%emt 0:03:49]} 32. Rxe6 {[%emt 0:00:06]} Rxf3 {[%emt 0:00:06]} 33. Kg2 {[%emt 0:00:40]} Rf7 {[%emt 0:03:51]} 34. Ra6 {[%emt 0:00:45]} c4 {[%emt 0:00:47]} 35. Rc6 {[%emt 0:00:19]} Kg7 {[%emt 0:00:54]} 36. Rxc4 {[%emt 0:00:14]} Kh6 {[%emt 0:05:14]} 37. a4 {[%emt 0:02:43]} a5 {[%emt 0:01:10]} 38. Rd5 {[%emt 0:00:27]} Bb4 {[%emt 0:00:29]} 39. Rh4+ {[%emt 0:00:28]} Kg7 {[%emt 0:00:09]} 40. Rhd4 {[%emt 0:00:00]} Kh6 {[%emt 0:00:00]} 41. Rd7 {[%emt 0:00:28]} Rf5 {[%emt 0:05:55]} 42. Rh4+ {[%emt 0:00:25]} Kg5 {[%emt 0:00:02]} 43. Rhxh7 {[%emt 0:00:19]} Bc5 {[%emt 0:00:30]} 44. Rdf7 {[%emt 0:00:22]} 1-0

[Event "3rd BSSZ-Aranytiz IM 2019"]
[Site "Budapest"]
[Date "2019.08.24"]
[Round "8.1"]
[White "Juhasz, Barbara"]
[Black "Luong, Phuong Hanh"]
[Result "0-1"]
[ECO "B43"]
[WhiteElo "2157"]
[BlackElo "2313"]
[Annotator "NA"]
[PlyCount "104"]
[EventDate "2019.08.16"]
[EventType "tourn"]
[EventCountry "HUN"]
[SourceTitle "playchess.com"]
[Source "ChessBase"]
[SourceQuality "1"]
[TimeControl "40/5400+30:1800+30"]

1. e4 {[%emt 0:00:08]} c5 {[%emt 0:00:08]} 2. Nf3 {[%emt 0:00:07]} e6 {[%emt 0:00:08]} 3. d4 {[%emt 0:00:07]} cxd4 {[%emt 0:00:07]} 4. Nxd4 {[%emt 0:00:04]} a6 {[%emt 0:00:12]} 5. Nc3 {[%emt 0:00:06]} Qc7 {[%emt 0:00:06]} 6. Bd3 {[%emt 0:00:07]} Nf6 {[%emt 0:00:06]} 7. O-O {[%emt 0:00:06]} Bc5 {[%emt 0:00:05]} 8. Nb3 {[%emt 0:00:06]} Be7 {[%emt 0:00:07]} 9. f4 {[%emt 0:00:08]} d6 {[%emt 0:00:06]} 10. e5 {[%emt 0:00:06]} Nfd7 {[%emt 0:03:52]} 11. exd6 {[%emt 0:00:16]} Bxd6 {[%emt 0:00:11]} 12. Ne4 {[%emt 0:00:06]} Be7 {[%emt 0:01:11]} 13. Qh5 {[%emt 0:00:18]} Nf6 {[%emt 0:04:08]} 14. Nxf6+ {[%emt 0:22:28]} Bxf6 {[%emt 0:01:00]} 15. Be3 {[%emt 0:03:57]} Nc6 {[%emt 0:04:14]} 16. c3 {[%emt 0:00:19]} Ne7 {[%emt 0:04:24]} 17. Rae1 {[%emt 0:11:21]} Bd7 {[%emt 0:01:47]} 18. Kh1 Bc6 {[%emt 0:06:34]} 19. Nd4 {[%emt 0:23:57]} g6 {[%emt 0:01:17]} 20. Qh3 {[%emt 0:00:18]} O-O {[%emt 0:04:57]} 21. Nf3 {[%emt 0:02:10]} Rad8 {[%emt 0:06:42]} 22. Bb1 {[%emt 0:00:46]} Bb5 {[%emt 0:03:26]} 23. Rf2 {[%emt 0:07:53]} Bd3 {[%emt 0:05:00]} 24. Bd4 {[%emt 0:03:25]} Bxd4 {[%emt 0:02:40]} 25. Nxd4 {[%emt 0:00:03]} Bxb1 {[%emt 0:01:17]} 26. Rxb1 {[%emt 0:00:05]} b5 {[%emt 0:07:46]} 27. Qe3 {[%emt 0:02:30]} Nd5 {[%emt 0:02:16]} 28. Qe4 {[%emt 0:00:08]} b4 {[%emt 0:05:27]} 29. cxb4 {[%emt 0:00:19]} Qc4 {[%emt 0:02:33]} 30. Rc2 {[%emt 0:02:36]} Qxa2 {[%emt 0:00:45]} 31. Rd1 {[%emt 0:04:05]} Nxb4 {[%emt 0:02:34]} 32. Rcd2 {[%emt 0:00:04]} Qd5 {[%emt 0:05:51]} 33. Qe3 {[%emt 0:00:05]} Qh5 {[%emt 0:02:22]} 34. Qb3 {[%emt 0:05:18]} a5 {[%emt 0:01:53]} 35. Nf3 {[%emt 0:02:14]} Nd5 {[%emt 0:01:50]} 36. Qa4 {[%emt 0:03:35]} Nb6 {[%emt 0:06:24]} 37. Qc6 {[%emt 0:00:03]} Rxd2 {[%emt 0:00:29]} 38. Rxd2 {[%emt 0:00:03]} Nd5 {[%emt 0:00:14]} 39. Qa4 {[%emt 0:04:51]} Qf5 {[%emt 0:00:14]} 40. g3 {[%emt 0:00:00]} Rc8 {[%emt 0:00:00]} 41. Kg2 {[%emt 0:01:56]} Ne3+ {[%emt 0:03:26]} 42. Kf2 {[%emt 0:00:07]} Nc4 {[%emt 0:01:27]} 43. Rd4 {[%emt 0:04:50]} Nxb2 {[%emt 0:00:35]} 44. Qd7 {[%emt 0:00:03]} Rc2+ {[%emt 0:03:47]} 45. Nd2 {[%emt 0:01:31]} Qc5 {[%emt 0:01:20]} 46. Qd8+ {[%emt 0:01:39]} Kg7 {[%emt 0:00:09]} 47. Kf3 {[%emt 0:00:25]} Qh5+ {[%emt 0:01:59]} 48. Kg2 {[%emt 0:02:26]} Qe2+ {[%emt 0:02:08]} 49. Kh3 {[%emt 0:00:21]} Nd1 {[%emt 0:01:14]} 50. Qxa5 {[%emt 0:07:05]} Nf2+ {[%emt 0:00:12]} 51. Kg2 {[%emt 0:00:03]} Nd3+ {[%emt 0:01:03]} 52. Kh3 {[%emt 0:00:22]} Rxd2 {[%emt 0:00:08]} 0-1

[Event "3rd BSSZ-Aranytiz IM 2019"]
[Site "Budapest"]
[Date "2019.08.24"]
[Round "8.2"]
[White "Urhegyi, Marton"]
[Black "Maerevoet, Sim"]
[Result "1/2-1/2"]
[ECO "B53"]
[WhiteElo "2256"]
[BlackElo "2321"]
[Annotator "NA"]
[PlyCount "48"]
[EventDate "2019.08.16"]
[EventType "tourn"]
[EventCountry "HUN"]
[SourceTitle "playchess.com"]
[Source "ChessBase"]
[SourceQuality "1"]
[TimeControl "40/5400+30:1800+30"]

1. e4 {[%emt 0:07:14]} c5 {[%emt 0:00:10]} 2. Nf3 {[%emt 0:00:07]} d6 {[%emt 0:00:08]} 3. d4 {[%emt 0:00:06]} cxd4 {[%emt 0:00:07]} 4. Qxd4 {[%emt 0:00:07]} a6 {[%emt 0:01:30]} 5. Be2 {[%emt 0:01:17]} Nc6 {[%emt 0:00:55]} 6. Qe3 {[%emt 0:00:05]} g6 {[%emt 0:06:29]} 7. O-O {[%emt 0:01:42]} Bg7 {[%emt 0:00:16]} 8. c4 {[%emt 0:00:29]} Nf6 {[%emt 0:00:34]} 9. h3 {[%emt 0:00:41]} O-O {[%emt 0:01:12]} 10. Rd1 {[%emt 0:00:45]} Nd7 {[%emt 0:04:08]} 11. Nc3 {[%emt 0:00:49]} Nc5 {[%emt 0:01:48]} 12. Rb1 {[%emt 0:11:44]} a5 {[%emt 0:05:38]} 13. b3 {[%emt 0:11:01]} Bxc3 {[%emt 0:14:35]} 14. Qxc3 {[%emt 0:01:07]} Nxe4 {[%emt 0:00:04]} 15. Qe3 {[%emt 0:01:46]} Nc5 {[%emt 0:02:00]} 16. Bb2 {[%emt 0:05:30]} f6 {[%emt 0:00:48]} 17. Nd4 {[%emt 0:04:21]} Nxd4 {[%emt 0:10:46]} 18. Rxd4 {[%emt 0:01:00]} b6 {[%emt 0:09:29]} 19. Rbd1 {[%emt 0:10:54]} Bb7 {[%emt 0:04:38]} 20. h4 {[%emt 0:03:52]} Rf7 {[%emt 0:01:37]} 21. h5 {[%emt 0:04:45]} Rg7 {[%emt 0:04:38]} 22. hxg6 {[%emt 0:04:20]} Rxg6 {[%emt 0:01:53]} 23. Rg4 {[%emt 0:02:15]} Qf8 {[%emt 0:04:44]} 24. Rdd4 {[%emt 0:04:28]} Qg7 {[%emt 0:01:42]} 1/2-1/2

[Event "3rd BSSZ-Aranytiz IM 2019"]
[Site "Budapest"]
[Date "2019.08.24"]
[Round "8.3"]
[White "Hamblok, Roel"]
[Black "Nemeth, Zoltan"]
[Result "0-1"]
[ECO "D02"]
[WhiteElo "2261"]
[BlackElo "2275"]
[Annotator "NA"]
[PlyCount "78"]
[EventDate "2019.08.16"]
[EventType "tourn"]
[EventCountry "HUN"]
[SourceTitle "playchess.com"]
[Source "ChessBase"]
[SourceQuality "1"]
[TimeControl "40/5400+30:1800+30"]

1. d4 {[%emt 0:00:05]} d5 {[%emt 0:03:13]} 2. Nf3 {[%emt 0:00:27]} e6 {[%emt 0:01:45]} 3. g3 {[%emt 0:00:48]} Bd6 {[%emt 0:01:38]} 4. Bg2 {[%emt 0:00:20]} c6 {[%emt 0:00:10]} 5. O-O {[%emt 0:00:30]} f5 {[%emt 0:00:20]} 6. c4 {[%emt 0:00:06]} Nf6 {[%emt 0:00:06]} 7. Nbd2 {[%emt 0:00:22]} Nbd7 {[%emt 0:00:35]} 8. Qc2 {[%emt 0:04:26]} O-O {[%emt 0:00:44]} 9. Ne1 {[%emt 0:00:21]} Qe7 {[%emt 0:05:37]} 10. Nd3 {[%emt 0:00:59]} b6 {[%emt 0:01:09]} 11. Nf3 {[%emt 0:09:11]} Bb7 {[%emt 0:00:25]} 12. Bf4 {[%emt 0:02:28]} c5 {[%emt 0:07:25]} 13. cxd5 {[%emt 0:09:25]} Bxd5 {[%emt 0:12:06]} 14. Bxd6 {[%emt 0:03:39]} Qxd6 {[%emt 0:00:06]} 15. dxc5 {[%emt 0:02:45]} Nxc5 {[%emt 0:01:09]} 16. Nf4 {[%emt 0:02:31]} Be4 {[%emt 0:08:45]} 17. Qc4 {[%emt 0:02:51]} Nd5 {[%emt 0:03:40]} 18. Rfd1 {[%emt 0:04:44]} Qe7 {[%emt 0:07:27]} 19. b4 {[%emt 0:22:03]} Na4 {[%emt 0:19:25]} 20. Qb3 {[%emt 0:08:16]} Nac3 {[%emt 0:01:33]} 21. Nxd5 {[%emt 0:00:26]} Nxd5 {[%emt 0:04:17]} 22. Nd4 {[%emt 0:03:50]} Bxg2 {[%emt 0:01:54]} 23. Kxg2 {[%emt 0:00:04]} Rad8 {[%emt 0:10:02]} 24. Kg1 {[%emt 0:04:12]} Rd6 {[%emt 0:01:00]} 25. b5 {[%emt 0:00:53]} f4 {[%emt 0:00:24]} 26. Rac1 {[%emt 0:05:25]} Qf6 {[%emt 0:01:27]} 27. Rc6 {[%emt 0:04:17]} fxg3 {[%emt 0:02:20]} 28. Qxg3 {[%emt 0:00:11]} Rxc6 {[%emt 0:00:53]} 29. bxc6 {[%emt 0:01:09]} e5 {[%emt 0:00:14]} 30. Qb3 {[%emt 0:07:11]} Qxf2+ {[%emt 0:03:10]} 31. Kh1 {[%emt 0:00:01]} exd4 {[%emt 0:00:55]} 32. Qxd5+ {[%emt 0:00:02]} Kh8 {[%emt 0:01:02]} 33. Qe4 {[%emt 0:01:52]} Qf6 {[%emt 0:00:49]} 34. c7 {[%emt 0:00:33]} Qf7 {[%emt 0:00:40]} 35. Rc1 {[%emt 0:00:29]} Qd7 {[%emt 0:00:28]} 36. Qb7 {[%emt 0:00:32]} Rc8 {[%emt 0:00:07]} 37. Qxa7 Qd5+ {[%emt 0:00:05]} 38. e4 {[%emt 0:00:49]} Qxe4+ {[%emt 0:00:10]} 39. Kg1 {[%emt 0:00:06]} Qe3+ {[%emt 0:00:01] Ra1} 0-1

[Event "3rd BSSZ-Aranytiz IM 2019"]
[Site "Budapest"]
[Date "2019.08.24"]
[Round "8.4"]
[White "Persanyi, Barnabas"]
[Black "Martic, Zlatko"]
[Result "1/2-1/2"]
[ECO "A04"]
[WhiteElo "2399"]
[BlackElo "2284"]
[Annotator "NA"]
[PlyCount "95"]
[EventDate "2019.08.16"]
[EventType "tourn"]
[EventCountry "HUN"]
[SourceTitle "playchess.com"]
[Source "ChessBase"]
[SourceQuality "1"]
[TimeControl "40/5400+30:1800+30"]

1. Nf3 {[%emt 0:00:11]} c5 {[%emt 0:02:33]} 2. c4 {[%emt 0:00:49]} Nf6 {[%emt 0:00:38]} 3. g3 {[%emt 0:00:51]} b6 {[%emt 0:00:15]} 4. Bg2 {[%emt 0:00:26]} Bb7 {[%emt 0:00:08]} 5. O-O {[%emt 0:02:08]} g6 {[%emt 0:00:13]} 6. b3 {[%emt 0:02:18]} Bg7 {[%emt 0:01:51]} 7. Bb2 {[%emt 0:00:13]} O-O {[%emt 0:00:36]} 8. d4 {[%emt 0:02:43]} cxd4 {[%emt 0:01:21]} 9. Qxd4 {[%emt 0:02:00]} Nh5 {[%emt 0:23:40]} 10. Qd2 {[%emt 0:00:56]} Bxb2 {[%emt 0:00:10]} 11. Qxb2 {[%emt 0:00:15]} d6 {[%emt 0:00:12]} 12. Ne5 {[%emt 0:09:23]} Bxg2 {[%emt 0:02:25]} 13. Ng4 {[%emt 0:02:08]} f6 {[%emt 0:04:13]} 14. Kxg2 {[%emt 0:00:22]} d5 {[%emt 0:00:35]} 15. Qd4 {[%emt 0:02:43]} dxc4 {[%emt 0:01:39]} 16. Qxc4+ {[%emt 0:06:32]} Kh8 {[%emt 0:00:21]} 17. Nc3 {[%emt 0:04:58]} Qc8 {[%emt 0:02:13]} 18. Qxc8 {[%emt 0:01:41]} Rxc8 {[%emt 0:00:01]} 19. Nd5 {[%emt 0:02:45]} Nc6 {[%emt 0:01:26]} 20. Rac1 {[%emt 0:00:42]} f5 {[%emt 0:04:29]} 21. Nge3 {[%emt 0:04:05]} e6 {[%emt 0:00:41]} 22. Nc3 {[%emt 0:01:07]} Nf6 {[%emt 0:10:07]} 23. Rfd1 {[%emt 0:01:56]} Ne7 {[%emt 0:05:31]} 24. Nb5 {[%emt 0:15:07]} Ned5 {[%emt 0:02:52]} 25. Nxd5 {[%emt 0:01:34]} Nxd5 {[%emt 0:00:10]} 26. Nd6 {[%emt 0:06:56]} Rxc1 {[%emt 0:00:41]} 27. Rxc1 {[%emt 0:00:06]} Kg7 {[%emt 0:00:56]} 28. e4 {[%emt 0:01:28]} fxe4 {[%emt 0:01:02]} 29. Nxe4 {[%emt 0:00:23]} h6 {[%emt 0:00:21]} 30. Rc6 {[%emt 0:02:22]} Kf7 {[%emt 0:00:54]} 31. Nc3 {[%emt 0:00:37]} Ne7 {[%emt 0:01:43]} 32. Rc7 {[%emt 0:01:01]} Rc8 {[%emt 0:00:37]} 33. Rxc8 {[%emt 0:00:57]} Nxc8 {[%emt 0:00:01]} 34. Kf3 {[%emt 0:01:02]} e5 {[%emt 0:05:56]} 35. Ke4 {[%emt 0:04:16]} Ke6 {[%emt 0:00:08]} 36. Nb5 {[%emt 0:02:09]} Nd6+ {[%emt 0:04:00]} 37. Nxd6 {[%emt 0:00:55]} Kxd6 {[%emt 0:00:02]} 38. h3 {[%emt 0:10:03]} Ke6 {[%emt 0:00:15]} 39. h4 {[%emt 0:00:14]} b5 {[%emt 0:13:10]} 40. a3 {[%emt 0:00:00]} a5 {[%emt 0:00:00]} 41. a4 {[%emt 0:26:49]} bxa4 {[%emt 0:08:21]} 42. bxa4 {[%emt 0:00:06]} Kd6 {[%emt 0:00:11]} 43. g4 {[%emt 0:00:49]} Ke6 {[%emt 0:00:45]} 44. h5 {[%emt 0:02:16]} gxh5 {[%emt 0:00:53]} 45. gxh5 {[%emt 0:00:04]} Kf6 {[%emt 0:00:11]} 46. f4 {[%emt 0:01:59]} exf4 {[%emt 0:00:15]} 47. Kxf4 {[%emt 0:00:04]} Ke6 {[%emt 0:09:22]} 48. Ke4 {[%emt 0:00:07] Ke5+} 1/2-1/2

[Event "3rd BSSZ-Aranytiz IM 2019"]
[Site "Budapest"]
[Date "2019.08.24"]
[Round "8.5"]
[White "Farago, Sandor"]
[Black "Havanecz, Bianka"]
[Result "0-1"]
[ECO "C77"]
[WhiteElo "2211"]
[BlackElo "2281"]
[Annotator "NA"]
[PlyCount "110"]
[EventDate "2019.08.16"]
[EventType "tourn"]
[EventCountry "HUN"]
[SourceTitle "playchess.com"]
[Source "ChessBase"]
[SourceQuality "1"]
[TimeControl "40/5400+30:1800+30"]

1. e4 {[%emt 0:00:02]} e5 {[%emt 0:00:04]} 2. Nf3 {[%emt 0:00:08]} Nc6 {[%emt 0:00:03]} 3. Bb5 {[%emt 0:00:04]} a6 {[%emt 0:00:03]} 4. Ba4 {[%emt 0:00:06]} Nf6 {[%emt 0:00:06]} 5. d3 {[%emt 0:00:10]} d6 {[%emt 0:00:05]} 6. c3 {[%emt 0:00:38]} Be7 {[%emt 0:00:09]} 7. O-O {[%emt 0:02:20]} O-O {[%emt 0:00:05]} 8. Re1 {[%emt 0:01:57]} Re8 {[%emt 0:00:05]} 9. Nbd2 {[%emt 0:01:45]} Bf8 {[%emt 0:00:23]} 10. Nf1 {[%emt 0:02:56]} h6 {[%emt 0:00:07]} 11. Ng3 {[%emt 0:00:43]} b5 {[%emt 0:00:48]} 12. Bc2 {[%emt 0:00:23]} d5 {[%emt 0:00:14]} 13. Qe2 {[%emt 0:10:14]} Be6 {[%emt 0:10:28]} 14. h3 {[%emt 0:07:56]} dxe4 {[%emt 0:07:06]} 15. dxe4 {[%emt 0:01:13]} Nd7 {[%emt 0:02:48]} 16. Rd1 {[%emt 0:05:38]} Qf6 {[%emt 0:02:25]} 17. Be3 {[%emt 0:03:04]} Rad8 {[%emt 0:02:49]} 18. Nh2 {[%emt 0:07:01]} Nc5 {[%emt 0:03:45]} 19. Ng4 {[%emt 0:00:39]} Qg6 {[%emt 0:04:02]} 20. Rd5 {[%emt 0:14:20]} Nd7 {[%emt 0:15:50]} 21. a4 {[%emt 0:08:58]} b4 {[%emt 0:00:23]} 22. a5 {[%emt 0:01:18]} Ra8 {[%emt 0:08:53]} 23. Ba4 {[%emt 0:07:31]} Bxd5 {[%emt 0:02:32]} 24. exd5 {[%emt 0:00:08]} Ncb8 {[%emt 0:00:03]} 25. Bc2 {[%emt 0:09:04]} e4 {[%emt 0:00:04]} 26. Nh5 {[%emt 0:04:17]} bxc3 {[%emt 0:02:06]} 27. bxc3 {[%emt 0:00:21]} Bd6 {[%emt 0:01:14]} 28. Nf4 {[%emt 0:05:02]} Qf5 {[%emt 0:01:20]} 29. g3 {[%emt 0:00:16]} Nc5 {[%emt 0:02:37]} 30. c4 {[%emt 0:00:35]} Nbd7 {[%emt 0:00:20]} 31. Ng2 {[%emt 0:03:41]} Qh7 {[%emt 0:04:51]} 32. Bd4 {[%emt 0:00:50]} Rab8 {[%emt 0:03:49]} 33. Ra3 {[%emt 0:00:34]} f5 {[%emt 0:01:53]} 34. N4e3 {[%emt 0:00:15]} Nd3 {[%emt 0:01:03]} 35. Rc3 {[%emt 0:01:22]} Be5 {[%emt 0:06:34]} 36. Bxe5 {[%emt 0:00:23]} N7xe5 {[%emt 0:00:09]} 37. Nh4 {[%emt 0:00:18]} f4 {[%emt 0:01:06]} 38. gxf4 {[%emt 0:00:38]} Nxf4 {[%emt 0:00:04]} 39. Qf1 {[%emt 0:00:42]} Rf8 {[%emt 0:01:03]} 40. Kh1 {[%emt 0:00:00]} Nfd3 {[%emt 0:00:00]} 41. Nd1 {[%emt 0:06:27]} g5 {[%emt 0:01:32]} 42. Ng2 {[%emt 0:03:01]} Rf3 {[%emt 0:08:46]} 43. Nge3 {[%emt 0:00:14]} Qd7 {[%emt 0:00:44]} 44. Bxd3 {[%emt 0:03:19]} Rxh3+ {[%emt 0:00:27]} 45. Kg2 {[%emt 0:00:14]} exd3 {[%emt 0:01:09]} 46. Rxd3 {[%emt 0:00:29]} Rf3 {[%emt 0:01:04]} 47. Rc3 {[%emt 0:01:51]} Rbf8 {[%emt 0:01:07]} 48. Qh1 {[%emt 0:02:15]} Kg7 {[%emt 0:00:08]} 49. Qh2 {[%emt 0:03:02]} Ng6 {[%emt 0:06:22]} 50. c5 {[%emt 0:00:33]} Nh4+ {[%emt 0:00:39]} 51. Kf1 {[%emt 0:00:29]} Qb5+ {[%emt 0:01:01]} 52. Kg1 {[%emt 0:02:29]} R8f4 {[%emt 0:02:02]} 53. Qh1 {[%emt 0:02:32]} Qe2 {[%emt 0:01:07]} 54. Rc2 {[%emt 0:01:15]} Qe1+ {[%emt 0:00:09]} 55. Kh2 {[%emt 0:00:07]} Rh3+ {[%emt 0:00:07]} 0-1

[Event "3rd BSSZ-Aranytiz IM 2019"]
[Site "Budapest"]
[Date "2019.08.25"]
[Round "9.1"]
[White "Havanecz, Bianka"]
[Black "Juhasz, Barbara"]
[Result "1/2-1/2"]
[ECO "E73"]
[WhiteElo "2281"]
[BlackElo "2157"]
[Annotator "NA"]
[PlyCount "50"]
[EventDate "2019.08.16"]
[EventType "tourn"]
[EventCountry "HUN"]
[SourceTitle "playchess.com"]
[Source "ChessBase"]
[SourceQuality "1"]
[TimeControl "40/5400+30:1800+30"]

1. d4 {[%emt 0:00:03]} Nf6 {[%emt 0:00:08]} 2. c4 {[%emt 0:00:04]} g6 {[%emt 0:00:04]} 3. Nc3 {[%emt 0:00:04]} Bg7 {[%emt 0:00:06]} 4. e4 {[%emt 0:00:06]} d6 {[%emt 0:00:04]} 5. Be2 {[%emt 0:00:17]} O-O {[%emt 0:00:07]} 6. Be3 {[%emt 0:00:06]} e5 {[%emt 0:00:07]} 7. d5 {[%emt 0:00:06]} Na6 {[%emt 0:00:07]} 8. g4 {[%emt 0:02:05]} Nc5 {[%emt 0:00:04]} 9. f3 {[%emt 0:00:25]} h5 {[%emt 0:00:05]} 10. h3 {[%emt 0:03:28]} Nh7 {[%emt 0:08:19]} 11. Qd2 {[%emt 0:04:11]} h4 {[%emt 0:01:07]} 12. g5 {[%emt 0:02:32]} f6 {[%emt 0:04:41]} 13. gxf6 {[%emt 0:00:19]} Bxf6 {[%emt 0:00:07]} 14. Rh2 {[%emt 0:01:22]} Bg5 {[%emt 0:09:00]} 15. Rg2 {[%emt 0:00:52]} Bxe3 {[%emt 0:00:06]} 16. Qxe3 {[%emt 0:00:03]} Qf6 {[%emt 0:00:06]} (16... Kg7 $11 {keeps the balance.}) 17. O-O-O {[%emt 0:07:10]} (17. Qh6 $16 g5 18. Qxh4) 17... Kg7 {[%emt 0:05:06]} (17... Bd7 $11) 18. Bf1 $11 {[%emt 0:06:25]} ({White should play} 18. b4 Na6 19. a3) 18... a5 {[%emt 0:15:33]} 19. Re1 {[%emt 0:10:27]} Bd7 {[%emt 0:02:04]} 20. Kb1 {[%emt 0:10:13]} Qf4 {[%emt 0:10:30]} 21. Nd1 {[%emt 0:00:24]} Qxe3 {[%emt 0:11:43]} 22. Nxe3 {[%emt 0:00:06]} Rf7 {[%emt 0:00:05]} 23. Kc2 {[%emt 0:02:00]} Raf8 {[%emt 0:01:34]} 24. Be2 {[%emt 0:00:53]} Kh6 {[%emt 0:03:04]} 25. b3 Nf6 1/2-1/2

[Event "3rd BSSZ-Aranytiz IM 2019"]
[Site "Budapest"]
[Date "2019.08.25"]
[Round "9.2"]
[White "Martic, Zlatko"]
[Black "Farago, Sandor"]
[Result "1-0"]
[ECO "A01"]
[WhiteElo "2284"]
[BlackElo "2211"]
[Annotator "NA"]
[PlyCount "107"]
[EventDate "2019.08.16"]
[EventType "tourn"]
[EventCountry "HUN"]
[SourceTitle "playchess.com"]
[Source "ChessBase"]
[SourceQuality "1"]
[TimeControl "40/5400+30:1800+30"]

1. b3 {[%emt 0:02:26]} e5 {[%emt 0:00:39]} 2. Bb2 {[%emt 0:00:08]} Nc6 {[%emt 0:00:07]} 3. e3 {[%emt 0:00:29]} Nf6 {[%emt 0:02:29]} 4. Nf3 {[%emt 0:00:52]} d6 {[%emt 0:01:02]} 5. Bb5 {[%emt 0:04:10]} e4 {[%emt 0:02:32]} 6. Nd4 {[%emt 0:00:09]} Bd7 {[%emt 0:00:07]} 7. d3 {[%emt 0:03:38]} d5 {[%emt 0:06:55]} 8. Nd2 {[%emt 0:05:07]} a6 {[%emt 0:09:22]} 9. Nxc6 $16 {[%emt 0:01:54]} bxc6 {[%emt 0:00:09]} 10. Ba4 {[%emt 0:00:05]} exd3 {[%emt 0:24:37]} 11. cxd3 {[%emt 0:00:15]} a5 12. O-O Be7 {[%emt 0:10:31]} 13. Rc1 {[%emt 0:01:49]} Ra6 14. Nf3 {[%emt 0:14:41]} c5 {[%emt 0:08:57]} 15. Bxd7+ {[%emt 0:03:22]} Nxd7 {[%emt 0:00:47]} 16. Bxg7 {[%emt 0:08:15]} Rg8 {[%emt 0:00:04]} 17. Bc3 Rag6 {[%emt 0:01:41]} 18. g3 {[%emt 0:00:19]} Bd6 {[%emt 0:00:25]} 19. d4 {[%emt 0:02:09]} c6 {[%emt 0:03:13]} 20. dxc5 {[%emt 0:03:58]} Nxc5 21. Be5 {[%emt 0:00:56]} Be7 {[%emt 0:01:12]} 22. Nd4 {[%emt 0:01:58]} Qd7 {[%emt 0:00:29]} 23. Bf4 {[%emt 0:20:52]} Ne4 24. Qh5 Bg5 {[%emt 0:11:46]} 25. Rc2 {[%emt 0:12:56]} Rh6 {[%emt 0:01:28]} 26. Qf3 {[%emt 0:02:11]} c5 {[%emt 0:00:49]} 27. Rfc1 Qh3 28. Qg2 {[%emt 0:01:42]} Rgg6 {[%emt 0:11:37]} 29. Qxh3 {[%emt 0:02:59]} Rxh3 {[%emt 0:00:02]} 30. Ne2 {[%emt 0:03:37]} Rgh6 {[%emt 0:00:45]} 31. f3 {[%emt 0:00:34]} Rxh2 {[%emt 0:02:18]} 32. fxe4 {[%emt 0:00:39]} dxe4 {[%emt 0:00:12]} 33. Kf1 {[%emt 0:00:37]} Rh1+ {[%emt 0:01:12]} 34. Ng1 {[%emt 0:00:07]} Bxf4 {[%emt 0:00:10]} 35. exf4 {[%emt 0:00:14]} R6h3 {[%emt 0:01:02]} 36. Rg2 {[%emt 0:00:18]} h5 {[%emt 0:00:34]} 37. Rxc5 {[%emt 0:00:26]} h4 {[%emt 0:00:07]} 38. Rh5 {[%emt 0:00:44]} f5 {[%emt 0:00:34]} 39. Rxh4 {[%emt 0:02:04]} Rxh4 {[%emt 0:00:06]} 40. gxh4 {[%emt 0:00:00]} Rxh4 {[%emt 0:00:00]} 41. Ne2 {[%emt 0:00:45]} Kf7 {[%emt 0:00:12]} 42. Rg5 {[%emt 0:00:44]} Kf6 {[%emt 0:00:05]} 43. Rg8 {[%emt 0:00:10]} Rh1+ {[%emt 0:00:15]} 44. Kf2 {[%emt 0:00:33]} Ra1 {[%emt 0:00:08]} 45. a4 {[%emt 0:00:13]} Rd1 {[%emt 0:00:27]} 46. Ra8 {[%emt 0:00:26]} Rd3 {[%emt 0:00:06]} 47. Ra6+ {[%emt 0:00:48]} Kg7 {[%emt 0:00:39]} 48. Rxa5 {[%emt 0:00:08]} Rxb3 {[%emt 0:00:20]} 49. Rxf5 {[%emt 0:00:07]} Ra3 {[%emt 0:00:07]} 50. a5 {[%emt 0:00:10]} Kg6 {[%emt 0:00:26]} 51. Rb5 {[%emt 0:00:27]} Kf6 {[%emt 0:00:14]} 52. Nd4 {[%emt 0:00:43]} Rd3 {[%emt 0:00:28]} 53. Rd5 {[%emt 0:00:13]} Ra3 {[%emt 0:00:28]} 54. Ke2 {[%emt 0:00:13]} 1-0